bitfinex-derivatives/quotes_BTCF0:USTF0_20241214
["timestamp","ask_amount","ask_price","bid_price","bid_amount"]
[1734154070079,0.72167269,101740.0,101730.0,0.41160048]
[1734154074482,7.269e-05,101740.0,101730.0,0.41160048]
[1734154074680,0.72167269,101740.0,101730.0,0.41160048]
[1734154079281,0.80894281,101740.0,101730.0,0.41160048]
[1734154079991,0.72167269,101740.0,101730.0,0.41160048]
[1734154080291,0.86372663,101740.0,101730.0,0.41160048]
[1734154080886,0.80894281,101740.0,101730.0,0.41160048]
[1734154081186,0.98141235,101740.0,101730.0,0.41160048]
[1734154082291,0.89414223,101740.0,101730.0,0.41160048]
[1734154082992,0.83935841,101740.0,101730.0,0.41160048]
[1734154083193,0.8688957,101740.0,101730.0,0.41160048]
[1734154083392,0.92367952,101740.0,101730.0,0.41160048]
[1734154083798,0.1472957,101740.0,101730.0,0.41160048]
[1734154083997,0.8688957,101740.0,101730.0,0.41160048]
[1734154084202,0.8981691,101740.0,101730.0,0.41160048]
[1734154085293,0.9270983,101740.0,101730.0,0.41160048]
[1734154086901,0.72167269,101740.0,101730.0,0.41160048]
[1734154087094,0.77645651,101740.0,101730.0,0.41160048]
[1734154089392,0.9270983,101740.0,101730.0,0.4663843]
[1734154089595,0.72167269,101740.0,101730.0,0.41160048]
[1734154090397,0.89844539,101740.0,101730.0,0.41160048]
[1734154090599,0.89844539,101740.0,101730.0,0.4663843]
[1734154090799,0.36087269,101740.0,101730.0,0.41160048]
[1734154091096,0.36087269,101740.0,101730.0,0.4663843]
[1734154091300,0.50817703,101740.0,101730.0,0.4663843]
[1734154091497,0.36087269,101740.0,101730.0,0.4663843]
[1734154091703,0.50814022,101740.0,101730.0,0.4663843]
[1734154092797,0.50811667,101740.0,101730.0,0.4663843]
[1734154093103,0.36087269,101740.0,101730.0,0.4663843]
[1734154093404,0.50811722,101740.0,101730.0,0.4663843]
[1734154096102,0.86891722,101740.0,101730.0,0.41160048]
[1734154097603,0.86891722,101740.0,101730.0,0.44400048]
[1734154099409,0.86891722,101740.0,101730.0,0.5306843]
[1734154100499,0.98665304,101740.0,101730.0,0.5306843]
[1734154100699,0.86891722,101740.0,101730.0,0.5306843]
[1734154100902,0.98665108,101740.0,101730.0,0.5306843]
[1734154102507,0.83940655,101740.0,101730.0,0.5306843]
[1734154103010,0.83940655,101740.0,101730.0,0.47590048]
[1734154104708,0.83940655,101740.0,101730.0,0.5306843]
[1734154106306,0.92770674,101740.0,101730.0,0.5306843]
[1734154107213,0.80997288,101740.0,101730.0,0.5306843]
[1734154110211,0.72167269,101740.0,101730.0,0.5306843]
[1734154111303,0.36087269,101740.0,101730.0,0.5306843]
[1734154111909,7.269e-05,101740.0,101730.0,0.5306843]
[1734154117014,0.36087269,101740.0,101730.0,0.5306843]
[1734154119115,0.44917288,101740.0,101730.0,0.5306843]
[1734154120710,0.44917288,101740.0,101730.0,0.4987843]
[1734154123413,0.44917288,101740.0,101730.0,0.40170962]
[1734154123414,0.5039567,101740.0,101730.0,0.40170962]
[1734154123618,0.68507419,101740.0,101730.0,0.40170962]
[1734154123808,1.06372186,101740.0,101730.0,0.40170962]
[1734154124007,1.06372186,101740.0,101730.0,0.049143]
[1734154124221,0.76372186,101740.0,101730.0,0.049143]
[1734154124407,0.88150999,101740.0,101730.0,0.049143]
[1734154124612,1.18150999,101740.0,101730.0,0.049143]
[1734154124811,0.88150999,101740.0,101730.0,0.049143]
[1734154126320,0.73426546,101740.0,101730.0,0.049143]
[1734154130019,0.74431802,101740.0,101730.0,0.049143]
[1734154130426,0.83253422,101740.0,101730.0,0.049143]
[1734154135231,1.19333422,101740.0,101730.0,0.049143]
[1734154136029,1.1385504,101740.0,101730.0,0.049143]
[1734154136231,1.19333422,101740.0,101730.0,0.049143]
[1734154139335,1.07554609,101740.0,101730.0,0.049143]
[1734154140029,1.02076227,101740.0,101730.0,0.049143]
[1734154140433,1.07554609,101740.0,101730.0,0.049143]
[1734154140737,0.96597845,101740.0,101730.0,0.049143]
[1734154140933,0.93327845,101740.0,101730.0,0.049143]
[1734154141137,0.98806227,101740.0,101730.0,0.549143]
[1734154143741,0.87472527,101740.0,101730.0,0.549143]
[1734154143941,0.87472527,101740.0,101730.0,0.581343]
[1734154145944,0.81994145,101740.0,101730.0,0.581343]
[1734154146143,0.87472527,101740.0,101730.0,0.581343]
[1734154147241,0.9925134,101740.0,101730.0,0.581343]
[1734154150244,0.9042972,101740.0,101730.0,0.581343]
[1734154150946,0.93782394,101740.0,101730.0,0.581343]
[1734154151243,0.99260776,101740.0,101730.0,0.581343]
[1734154151450,0.9042972,101740.0,101730.0,0.581343]
[1734154152042,0.9042972,101740.0,101730.0,0.611843]
[1734154153743,0.83946082,101740.0,101730.0,0.72141064]
[1734154153944,0.83946082,101740.0,101730.0,0.66662682]
[1734154153945,0.81007946,101740.0,101730.0,0.66662682]
[1734154156355,0.72167269,101740.0,101730.0,1.02141064]
[1734154156748,0.72167269,101740.0,101730.0,0.72141064]
[1734154156955,0.36087269,101740.0,101730.0,0.72141064]
[1734154157452,0.36087269,101740.0,101730.0,1.02141064]
[1734154158545,0.36087269,101740.0,101730.0,0.72141064]
[1734154159249,7.269e-05,101740.0,101730.0,0.72141064]
[1734154159444,0.36087269,101740.0,101730.0,0.66662682]
[1734154159648,7.269e-05,101740.0,101730.0,0.66662682]
[1734154160449,7.269e-05,101740.0,101730.0,0.72141064]
[1734154164658,0.3608,101760.0,101750.0,0.049132]
[1734154164847,0.3608,101760.0,101750.0,0.15869964]
[1734154165354,0.3608,101760.0,101750.0,0.72109964]
[1734154166250,0.3608,101770.0,101760.0,0.049127]
[1734154166450,0.3608,101770.0,101760.0,0.19169464]
[1734154166849,0.56896897,101790.0,101760.0,1.04647846]
[1734154167048,0.0005,101790.0,101780.0,0.05478382]
[1734154167254,0.0312,101800.0,101780.0,0.51948564]
[1734154167551,0.0312,101800.0,101790.0,0.60389682]
[1734154172051,0.0312,101800.0,101790.0,0.65868064]
[1734154172256,0.0312,101800.0,101790.0,0.96469682]
[1734154174754,0.0312,101800.0,101790.0,0.60389682]
[1734154175064,0.0312,101800.0,101790.0,0.97438662]
[1734154175254,0.0317,101800.0,101790.0,0.97438662]
[1734154175665,0.0317,101800.0,101790.0,1.02917044]
[1734154176355,0.0317,101800.0,101790.0,0.61358662]
[1734154176556,0.3925,101800.0,101790.0,0.61358662]
[1734154177462,0.3925,101800.0,101790.0,0.60389682]
[1734154181264,0.392,101800.0,101790.0,0.60389682]
[1734154183167,0.441108,101800.0,101790.0,0.60389682]
[1734154183668,0.45115718,101800.0,101790.0,0.60389682]
[1734154185167,0.53956395,101800.0,101790.0,0.60389682]
[1734154188062,0.65735208,101800.0,101790.0,0.60389682]
[1734154191064,0.56894531,101800.0,101790.0,0.60389682]
[1734154193170,0.71618984,101800.0,101790.0,0.60389682]
[1734154194063,0.59840171,101800.0,101790.0,0.60389682]
[1734154196080,0.77517441,101800.0,101790.0,0.60389682]
[1734154196868,0.62792988,101800.0,101790.0,0.60389682]
[1734154198377,1.13583586,101800.0,101790.0,0.60389682]
[1734154199174,0.41423586,101800.0,101790.0,0.60389682]
[1734154199475,1.13583586,101800.0,101790.0,0.60389682]
[1734154204387,1.13583586,101800.0,101790.0,0.549113]
[1734154204681,1.13583586,101800.0,101790.0,0.60389682]
[1734154205877,0.41423586,101800.0,101790.0,0.60389682]
[1734154206081,1.13583586,101800.0,101790.0,0.60389682]
[1734154208485,0.95906316,101800.0,101790.0,0.60389682]
[1734154208994,1.13583586,101800.0,101790.0,0.60389682]
[1734154209176,0.95906316,101800.0,101790.0,0.60389682]
[1734154214075,0.23746316,101800.0,101790.0,0.60389682]
[1734154214385,0.95906316,101800.0,101790.0,0.60389682]
[1734154223195,1.13583586,101800.0,101790.0,0.60389682]
[1734154223693,0.95906316,101800.0,101790.0,0.60389682]
[1734154225094,1.13583586,101800.0,101790.0,0.60389682]
[1734154225294,1.13583586,101800.0,101790.0,0.549113]
[1734154226285,0.95906316,101800.0,101790.0,0.549113]
[1734154227690,1.0686308,101800.0,101790.0,0.5]
[1734154227892,0.049113,101790.0,101780.0,0.5]
[1734154228085,0.75742742,101790.0,101780.0,0.5]
[1734154228292,0.85250451,101790.0,101780.0,0.5]
[1734154228485,0.70526952,101790.0,101780.0,0.5]
[1734154229398,0.85244759,101790.0,101780.0,0.5]
[1734154229993,1.21324759,101790.0,101780.0,0.5]
[1734154231398,1.03647489,101790.0,101780.0,0.5]
[1734154234792,0.31487489,101790.0,101780.0,0.5]
[1734154234993,1.03647489,101790.0,101780.0,0.5]
[1734154235691,0.31487489,101790.0,101780.0,0.5]
[1734154235892,1.03647489,101790.0,101780.0,0.5]
[1734154236903,1.15408639,101790.0,101780.0,0.5]
[1734154238196,1.15408639,101790.0,101780.0,0.65868564]
[1734154238197,0.8883245,101790.0,101780.0,0.65868564]
[1734154238508,0.8883245,101790.0,101780.0,0.66650182]
[1734154239898,0.8883245,101790.0,101780.0,0.72128564]
[1734154240097,0.9765254,101790.0,101780.0,0.66650182]
[1734154240804,0.9765254,101790.0,101780.0,0.69710182]
[1734154241593,0.8589139,101790.0,101780.0,0.69710182]
[1734154241796,0.8098009,101790.0,101780.0,0.75188564]
[1734154245808,0.8098009,101790.0,101780.0,0.7619414]
[1734154252406,0.8098009,101790.0,101780.0,0.78179214]
[1734154256318,0.8098009,101790.0,101780.0,0.7619414]
[1734154257118,0.4490009,101790.0,101780.0,0.78159763]
[1734154262607,0.4490009,101790.0,101780.0,0.72681381]
[1734154262810,0.50378472,101790.0,101780.0,0.549118]
[1734154263111,0.61779772,101790.0,101780.0,0.549118]
[1734154263510,0.6806254,101790.0,101780.0,0.60390182]
[1734154264109,0.73960257,101790.0,101780.0,0.60390182]
[1734154265120,0.5924245,101790.0,101780.0,0.60390182]
[1734154265721,0.68070683,101790.0,101780.0,0.60390182]
[1734154266425,0.63159383,101790.0,101780.0,0.60390182]
[1734154266809,0.63159383,101790.0,101780.0,0.65868564]
[1734154267016,0.63159383,101790.0,101780.0,0.60390182]
[1734154268923,0.5433115,101790.0,101780.0,0.60390182]
[1734154269420,0.69048957,101790.0,101780.0,0.60390182]
[1734154269617,0.5433115,101790.0,101780.0,0.60390182]
[1734154270823,0.69048957,101790.0,101780.0,0.60390182]
[1734154271918,0.5433115,101790.0,101780.0,0.60390182]
[1734154272227,0.69048957,101790.0,101780.0,0.60390182]
[1734154272630,0.5924245,101790.0,101780.0,0.549118]
[1734154272927,0.67677489,101790.0,101780.0,0.5]
[1734154273227,0.67677489,101790.0,101780.0,0.549118]
[1734154274533,0.62199107,101790.0,101780.0,0.60390182]
[1734154274828,0.62199107,101790.0,101780.0,0.10390182]
[1734154275328,0.62199107,101790.0,101780.0,0.049118]
[1734154275531,0.67677489,101790.0,101780.0,0.049118]
[1734154278130,0.62199107,101790.0,101780.0,0.049118]
[1734154278432,0.62199107,101790.0,101780.0,0.10390182]
[1734154278630,0.62199107,101790.0,101780.0,0.60390182]
[1734154279323,0.7397104,101790.0,101780.0,0.60390182]
[1734154279930,0.7397104,101790.0,101780.0,0.549118]
[1734154284134,0.6905974,101790.0,101780.0,0.60390182]
[1734154284838,0.54341933,101790.0,101780.0,0.60390182]
[1734154286639,0.18261933,101790.0,101780.0,0.60390182]
[1734154286835,0.54341933,101790.0,101780.0,0.60390182]
[1734154287242,0.18261933,101790.0,101780.0,0.60390182]
[1734154287544,0.54341933,101790.0,101780.0,0.60390182]
[1734154290248,0.63173779,101790.0,101780.0,0.60390182]
[1734154291041,0.63173779,101790.0,101780.0,0.549118]
[1734154291445,0.68652161,101790.0,101780.0,0.549118]
[1734154291638,0.73563461,101790.0,101780.0,0.549118]
[1734154291837,0.79449422,101790.0,101780.0,0.549118]
[1734154293840,0.43369422,101790.0,101780.0,0.549118]
[1734154294137,0.79449422,101790.0,101780.0,0.549118]
[1734154297633,0.67677489,101790.0,101780.0,0.549118]
[1734154301942,0.67677489,101790.0,101780.0,0.5]
[1734154302142,0.70636952,101790.0,101780.0,0.5]
[1734154304351,1.06716952,101790.0,101780.0,0.5]
[1734154310248,1.0123857,101790.0,101780.0,0.5]
[1734154310447,1.06716952,101790.0,101780.0,0.5]
[1734154311152,1.06716952,101790.0,101770.0,0.049122]
[1734154311153,0.049118,101780.0,101770.0,0.5]
[1734154311449,0.049118,101780.0,101760.0,0.5]
[1734154311450,0.049123,101770.0,101760.0,0.5]
[1734154311636,0.64379494,101770.0,101760.0,0.5]
[1734154311841,0.67579494,101770.0,101760.0,0.5]
[1734154312644,0.79342941,101770.0,101760.0,0.5]
[1734154313247,0.67579494,101770.0,101760.0,0.5]
[1734154314753,0.79339281,101770.0,101760.0,0.5]
[1734154316456,0.64630469,101770.0,101760.0,0.5]
[1734154316753,1.00710469,101770.0,101760.0,0.5]
[1734154319344,1.01699794,101770.0,101760.0,0.5]
[1734154325051,1.01699794,101770.0,101760.0,0.549127]
[1734154327553,0.84909112,101770.0,101760.0,0.60391082]
[1734154327855,0.08816862,101770.0,101760.0,0.99179464]
[1734154328061,0.62548599,101780.0,101770.0,0.049123]
[1734154328062,0.44896238,101780.0,101770.0,0.049123]
[1734154328266,0.44896238,101780.0,101770.0,0.16900682]
[1734154328555,0.61899569,101790.0,101780.0,0.049118]
[1734154328760,0.50139782,101790.0,101780.0,0.049118]
[1734154329154,0.50139782,101790.0,101780.0,0.549118]
[1734154329353,0.50139782,101790.0,101780.0,0.579518]
[1734154329964,0.46469782,101790.0,101780.0,0.579518]
[1734154331051,0.47456725,101790.0,101780.0,0.579518]
[1734154333260,0.42545325,101790.0,101780.0,0.579518]
[1734154336663,0.37066943,101790.0,101780.0,0.579518]
[1734154336863,0.42545325,101790.0,101780.0,0.58935026]
[1734154340267,0.42545325,101790.0,101780.0,0.579518]
[1734154344171,0.42545325,101790.0,101780.0,0.549118]
[1734154344366,0.47456625,101790.0,101780.0,0.549118]
[1734154345878,0.50736625,101790.0,101780.0,0.549118]
[1734154346571,0.14656625,101790.0,101780.0,0.549118]
[1734154346777,0.50736625,101790.0,101780.0,0.549118]
[1734154350672,0.45258243,101790.0,101780.0,0.60390182]
[1734154351782,0.09178243,101790.0,101780.0,0.60390182]
[1734154351974,0.45258243,101790.0,101780.0,0.60390182]
[1734154354873,0.50736625,101790.0,101780.0,0.60390182]
[1734154355273,0.50736625,101790.0,101780.0,0.549118]
[1734154355682,0.62496412,101790.0,101780.0,0.549118]
[1734154357480,0.65445437,101790.0,101780.0,0.549118]
[1734154358381,0.77231907,101790.0,101780.0,0.549118]
[1734154358682,0.65445437,101790.0,101780.0,0.549118]
[1734154363094,0.60534137,101790.0,101780.0,0.549118]
[1734154363284,0.55055755,101790.0,101780.0,0.549118]
[1734154363485,0.55055755,101790.0,101780.0,0.60390182]
[1734154365085,0.66844001,101790.0,101780.0,0.60390182]
[1734154365391,0.55055755,101790.0,101780.0,0.60390182]
[1734154366995,0.66843935,101790.0,101780.0,0.60390182]
[1734154367690,0.66843935,101790.0,101780.0,0.65868564]
[1734154367691,0.62576992,101790.0,101780.0,0.65868564]
[1734154367893,0.47867749,101790.0,101780.0,0.72328564]
[1734154368995,0.50936239,101800.0,101780.0,0.72328564]
[1734154368996,0.62723988,101800.0,101780.0,0.72328564]
[1734154369197,0.11787749,101790.0,101780.0,0.66850182]
[1734154369591,0.63695008,101800.0,101780.0,0.66850182]
[1734154369797,0.62723988,101800.0,101790.0,0.049113]
[1734154370186,0.48015176,101800.0,101790.0,0.10389682]
[1734154370498,0.48015176,101800.0,101790.0,0.60389682]
[1734154377401,0.48015176,101800.0,101790.0,0.549113]
[1734154377594,0.48015176,101800.0,101790.0,0.60389682]
[1734154381501,0.52925976,101800.0,101790.0,0.60389682]
[1734154381699,0.58404358,101800.0,101790.0,0.549113]
[1734154381903,0.64854358,101800.0,101790.0,0.549113]
[1734154382804,0.7956317,101800.0,101790.0,0.549113]
[1734154383801,0.53066609,101800.0,101790.0,0.549113]
[1734154384201,0.47588227,101800.0,101790.0,0.60389682]
[1734154385402,0.59356549,101800.0,101790.0,0.60389682]
[1734154385705,0.47588227,101800.0,101790.0,0.60389682]
[1734154385911,0.59357098,101800.0,101790.0,0.60389682]
[1734154386105,0.59357204,101800.0,101790.0,0.60389682]
[1734154386510,0.74066016,101800.0,101790.0,0.60389682]
[1734154387405,0.62297039,101800.0,101790.0,0.60389682]
[1734154387812,0.74066927,101800.0,101790.0,0.60389682]
[1734154390512,0.79545309,101800.0,101790.0,0.5]
[1734154390702,0.79545309,101800.0,101770.0,0.04912]
[1734154390703,0.73253803,101800.0,101770.0,0.04912]
[1734154390903,0.52764615,101780.0,101770.0,0.10390382]
[1734154391108,0.52764615,101780.0,101770.0,0.60390382]
[1734154391308,0.59014615,101780.0,101770.0,0.60390382]
[1734154391615,1.06051379,101780.0,101770.0,0.5]
[1734154391912,1.15289016,101780.0,101770.0,0.5]
[1734154392106,1.03516201,101780.0,101770.0,0.5]
[1734154392511,1.1528181,101780.0,101770.0,0.55478382]
[1734154392813,0.95087409,101780.0,101770.0,0.55478382]
[1734154393111,1.00565791,101780.0,101770.0,0.5]
[1734154393307,0.98037819,101780.0,101770.0,0.5]
[1734154393505,0.049123,101770.0,101760.0,0.55478382]
[1734154393706,0.55823327,101770.0,101760.0,0.55478382]
[1734154394312,0.55823327,101770.0,101760.0,0.65869464]
[1734154394907,0.440623,101770.0,101760.0,0.65869464]
[1734154396609,0.440623,101770.0,101760.0,0.60391082]
[1734154398413,0.3915,101770.0,101760.0,0.60391082]
[1734154401615,0.3608,101770.0,101760.0,0.60391082]
[1734154401815,0.48241742,101780.0,101770.0,0.049123]
[1734154402010,0.43329942,101780.0,101770.0,0.10390682]
[1734154402212,0.43329942,101780.0,101770.0,0.049123]
[1734154402416,0.43329942,101780.0,101770.0,0.60390682]
[1734154402613,4.2e-07,101780.0,101770.0,0.909923]
[1734154402813,0.41059327,101790.0,101780.0,0.049118]
[1734154403021,0.049113,101790.0,101780.0,0.41558382]
[1734154403225,0.00147427,101800.0,101790.0,0.5]
[1734154403521,0.10536609,101800.0,101790.0,0.5]
[1734154403712,0.46616609,101800.0,101790.0,0.5318]
[1734154403909,0.52094991,101800.0,101790.0,0.5]
[1734154404111,0.049118,101780.0,101770.0,0.5]
[1734154404418,0.46470182,101780.0,101770.0,0.5]
[1734154405324,0.409918,101780.0,101770.0,0.5]
[1734154406122,0.46470182,101780.0,101770.0,0.5]
[1734154408631,0.47438407,101780.0,101770.0,0.5]
[1734154409220,0.52916789,101780.0,101770.0,0.5]
[1734154409420,0.049123,101770.0,101760.0,0.5318]
[1734154410424,0.049123,101770.0,101760.0,0.63571082]
[1734154416330,0.049123,101770.0,101760.0,0.580927]
[1734154417232,0.049123,101770.0,101760.0,0.941727]
[1734154417533,0.41960125,101780.0,101770.0,0.049123]
[1734154418229,0.41960125,101780.0,101770.0,0.549123]
[1734154418536,0.47438507,101780.0,101770.0,0.549123]
[1734154420540,0.62154526,101780.0,101770.0,0.549123]
[1734154421538,0.41960125,101780.0,101770.0,0.549123]
[1734154421734,0.41960125,101780.0,101770.0,0.60390682]
[1734154422238,0.05880125,101780.0,101770.0,0.60390682]
[1734154429845,0.47438507,101780.0,101770.0,0.549123]
[1734154430033,0.41960125,101780.0,101770.0,0.60390682]
[1734154430429,0.41960125,101780.0,101770.0,0.549123]
[1734154430641,0.47438507,101780.0,101770.0,0.549123]
[1734154430834,0.62154526,101780.0,101770.0,0.549123]
[1734154431035,0.62155632,101780.0,101770.0,0.549123]
[1734154432530,0.52916889,101780.0,101770.0,0.5]
[1734154432734,0.049127,101760.0,101740.0,0.13511782]
[1734154432932,0.049132,101750.0,101740.0,0.080334]
[1734154433150,0.049132,101750.0,101740.0,0.580334]
[1734154433443,0.049132,101750.0,101740.0,0.63511782]
[1734154443240,0.409932,101750.0,101740.0,0.580334]
[1734154443431,0.409932,101750.0,101740.0,0.5312]
[1734154443432,0.46471582,101750.0,101740.0,0.5312]
[1734154443844,0.46471582,101750.0,101740.0,0.580337]
[1734154444237,0.46471582,101750.0,101740.0,0.5312]
[1734154446941,0.46471582,101750.0,101740.0,0.580337]
[1734154447448,0.46471582,101750.0,101740.0,0.63512082]
[1734154447936,0.55282011,101750.0,101740.0,0.63512082]
[1734154448747,0.49803629,101750.0,101740.0,0.63512082]
[1734154449355,0.55282011,101750.0,101740.0,0.63512082]
[1734154452650,0.55282011,101750.0,101740.0,0.580337]
[1734154454748,0.49803629,101750.0,101740.0,0.63512082]
[1734154455245,0.49803629,101750.0,101740.0,0.580337]
[1734154455645,0.049132,101750.0,101740.0,0.63512082]
[1734154455849,0.51003985,101760.0,101750.0,0.049132]
[1734154456050,0.51003985,101760.0,101750.0,0.10391582]
[1734154456251,0.47671938,101760.0,101750.0,0.049132]
[1734154456453,0.47671938,101760.0,101750.0,0.549132]
[1734154456752,0.56482367,101760.0,101750.0,0.549132]
[1734154457160,0.47671938,101760.0,101750.0,0.549132]
[1734154457360,0.56482367,101760.0,101750.0,0.549132]
[1734154462561,0.47671938,101760.0,101750.0,0.549132]
[1734154462962,0.59448679,101760.0,101750.0,0.549132]
[1734154463160,0.61602196,101760.0,101750.0,0.60391582]
[1734154463565,0.25522196,101760.0,101750.0,0.60391582]
[1734154465360,0.16689641,101760.0,101750.0,0.60391582]
[1734154467060,0.16689641,101760.0,101750.0,0.61602111]
[1734154467371,0.25520393,101760.0,101750.0,0.61602111]
[1734154468173,0.25520393,101760.0,101750.0,0.64862111]
[1734154469555,0.13743652,101760.0,101750.0,0.67972111]
[1734154469759,0.26741472,101770.0,101750.0,1.04052111]
[1734154469961,0.25519993,101770.0,101760.0,0.49641082]
[1734154470160,0.30998375,101770.0,101760.0,0.441627]
[1734154470361,0.19221634,101770.0,101760.0,0.441627]
[1734154470567,0.19221634,101770.0,101760.0,0.941627]
[1734154471974,0.55301634,101770.0,101760.0,0.580827]
[1734154472171,0.67078375,101770.0,101760.0,0.580827]
[1734154473160,0.67078375,101770.0,101760.0,0.5]
[1734154473370,0.76508375,101770.0,101760.0,0.5]
[1734154473676,0.67677623,101770.0,101760.0,0.5]
[1734154479976,0.67677623,101770.0,101760.0,0.549127]
[1734154480777,0.82396995,101770.0,101760.0,0.549127]
[1734154481187,0.70123578,101770.0,101760.0,0.549127]
[1734154482379,0.61297623,101770.0,101760.0,0.549127]
[1734154482878,0.25217623,101770.0,101760.0,0.549127]
[1734154483074,0.61297623,101770.0,101760.0,0.549127]
[1734154484381,0.76016995,101770.0,101760.0,0.549127]
[1734154492078,0.39936995,101770.0,101760.0,0.549127]
[1734154492375,0.31408613,101770.0,101760.0,0.60391082]
[1734154492692,0.16689241,101770.0,101760.0,0.63391082]
[1734154492887,0.25523923,101770.0,101760.0,0.579127]
[1734154493077,0.25523923,101770.0,101760.0,0.939927]
[1734154495582,0.20611423,101770.0,101760.0,1.04949464]
[1734154496199,0.20611423,101770.0,101760.0,0.99471082]
[1734154497788,0.08834682,101770.0,101760.0,0.99471082]
[1734154499583,0.08834682,101770.0,101760.0,1.00675019]
[1734154500792,0.08834682,101770.0,101760.0,0.95196637]
[1734154500985,0.08834682,101770.0,101760.0,1.00675019]
[1734154503093,0.32229295,101780.0,101770.0,0.049123]
[1734154503291,0.21839013,101780.0,101770.0,0.10390682]
[1734154503794,0.21839013,101780.0,101770.0,0.63400682]
[1734154503993,0.21839013,101780.0,101770.0,0.66440682]
[1734154505591,0.21839013,101780.0,101770.0,0.609623]
[1734154506097,0.27317395,101780.0,101770.0,0.609623]
[1734154506683,0.21839013,101780.0,101770.0,0.609623]
[1734154507300,0.20611423,101780.0,101770.0,0.609623]
[1734154508712,0.20611423,101780.0,101770.0,0.66440682]
[1734154509904,0.08834682,101780.0,101770.0,1.02520682]
[1734154516113,0.13746482,101780.0,101770.0,0.970423]
[1734154517013,0.13746482,101780.0,101770.0,1.02520682]
[1734154521418,0.25523223,101780.0,101770.0,1.02520682]
[1734154521711,0.20611423,101780.0,101770.0,1.02520682]
[1734154521909,0.08834682,101780.0,101770.0,1.02520682]
[1734154522706,0.08834682,101780.0,101770.0,0.99480682]
[1734154522913,0.11776741,101780.0,101770.0,0.99480682]
[1734154523115,0.16688541,101780.0,101770.0,0.940023]
[1734154523320,0.16688541,101780.0,101770.0,0.99480682]
[1734154523912,0.11776741,101780.0,101770.0,0.99480682]
[1734154524114,0.08831235,101780.0,101770.0,0.99480682]
[1734154524314,0.08831235,101780.0,101770.0,1.02780682]
[1734154535326,0.08831235,101780.0,101770.0,0.66700682]
[1734154535522,0.08831235,101780.0,101770.0,1.02780682]
[1734154537423,0.08831235,101780.0,101770.0,0.66700682]
[1734154537623,0.08831235,101780.0,101770.0,1.02780682]
[1734154539626,0.08831235,101780.0,101770.0,0.909923]
[1734154539830,0.25519776,101780.0,101770.0,0.909923]
[1734154540130,0.25519776,101780.0,101770.0,0.96470682]
[1734154540923,0.30998158,101780.0,101770.0,0.909923]
[1734154541123,0.28769776,101780.0,101770.0,0.909923]
[1734154541324,0.32019776,101780.0,101770.0,0.909923]
[1734154544536,0.32019776,101780.0,101770.0,0.96470682]
[1734154550831,0.25519776,101780.0,101770.0,0.96470682]
[1734154555935,0.16688541,101780.0,101770.0,0.96470682]
[1734154557746,0.16688541,101780.0,101770.0,0.60390682]
[1734154558146,0.16688541,101780.0,101770.0,0.96470682]
[1734154564352,0.16688541,101780.0,101770.0,0.60390682]
[1734154564556,0.16688541,101780.0,101770.0,0.96470682]
[1734154565056,0.16688541,101780.0,101770.0,0.60390682]
[1734154565249,0.16688541,101780.0,101770.0,0.96470682]
[1734154566850,0.16688541,101780.0,101770.0,0.60390682]
[1734154567054,0.16688541,101780.0,101770.0,0.96470682]
[1734154568350,0.63725305,101780.0,101770.0,0.549123]
[1734154568547,0.61189554,101780.0,101770.0,0.549123]
[1734154568750,0.72837936,101780.0,101770.0,0.5]
[1734154568953,0.75779114,101780.0,101770.0,0.5]
[1734154569160,0.049123,101770.0,101760.0,0.579125]
[1734154569343,0.72976495,101770.0,101760.0,0.579125]
[1734154570657,0.31003684,101770.0,101760.0,0.579125]
[1734154573356,0.25525302,101770.0,101760.0,0.63390882]
[1734154578359,0.25525302,101770.0,101760.0,0.99470882]
[1734154578563,0.13744941,101770.0,101760.0,0.63390882]
[1734154578860,0.13744941,101770.0,101760.0,0.99470882]
[1734154580453,0.08832641,101770.0,101760.0,1.04949264]
[1734154580654,0.08832641,101770.0,101760.0,1.41029264]
[1734154580849,0.21746605,101780.0,101770.0,0.049123]
[1734154581056,0.11780361,101780.0,101770.0,0.46470682]
[1734154581263,0.08823373,101780.0,101770.0,0.49630682]
[1734154581463,0.08823373,101780.0,101770.0,0.99630682]
[1734154585251,0.66007699,101790.0,101770.0,0.99630682]
[1734154585455,0.66007699,101790.0,101780.0,0.13430182]
[1734154586156,0.66007699,101790.0,101780.0,0.63430182]
[1734154586967,0.29699699,101790.0,101780.0,0.63430182]
[1734154589461,0.26649699,101790.0,101780.0,0.63430182]
[1734154589665,0.21738299,101790.0,101780.0,0.63430182]
[1734154591174,0.09957938,101790.0,101780.0,0.99510182]
[1734154591670,0.08823373,101790.0,101780.0,0.99510182]
[1734154592265,0.71414634,101800.0,101790.0,0.049113]
[1734154592569,0.76893016,101800.0,101790.0,0.049113]
[1734154593064,0.76893016,101800.0,101790.0,0.549113]
[1734154593668,0.78032739,101800.0,101790.0,0.549113]
[1734154594664,0.78032739,101800.0,101790.0,0.60389682]
[1734154594973,0.41952739,101800.0,101790.0,0.60389682]
[1734154595171,0.74687748,101800.0,101790.0,0.5]
[1734154595358,0.049113,101790.0,101780.0,0.549118]
[1734154595558,0.58225405,101790.0,101780.0,0.549118]
[1734154595760,0.72950857,101790.0,101780.0,0.049118]
[1734154595963,0.72951707,101790.0,101780.0,0.049118]
[1734154604178,0.61195134,101790.0,101780.0,0.049118]
[1734154605872,0.55716752,101790.0,101780.0,0.10390182]
[1734154606076,0.31400905,101790.0,101780.0,0.58418564]
[1734154606287,0.16675453,101790.0,101780.0,1.02940182]
[1734154606676,0.1373457,101790.0,101780.0,1.02940182]
[1734154607079,0.1373457,101790.0,101780.0,0.66860182]
[1734154607472,0.1373457,101790.0,101780.0,1.02940182]
[1734154609081,0.30977105,101790.0,101780.0,0.66860182]
[1734154609273,0.30977105,101790.0,101780.0,0.613818]
[1734154610485,0.30977105,101790.0,101780.0,0.66860182]
[1734154612081,0.16675453,101790.0,101780.0,0.66860182]
[1734154612282,0.25502291,101790.0,101780.0,1.02940182]
[1734154613187,0.25502291,101790.0,101780.0,0.66860182]
[1734154613981,0.25502291,101790.0,101780.0,0.67974102]
[1734154616984,0.25502291,101790.0,101780.0,0.66860182]
[1734154623487,0.52755453,101790.0,101780.0,0.66860182]
[1734154624590,0.58233835,101790.0,101780.0,0.613818]
[1734154625085,0.67061163,101790.0,101780.0,0.613818]
[1734154625285,0.58233835,101790.0,101780.0,0.613818]
[1734154626596,0.61583661,101790.0,101780.0,0.66860182]
[1734154628585,0.25503661,101790.0,101780.0,0.66860182]
[1734154628788,0.61583661,101790.0,101780.0,0.66860182]
[1734154629884,0.52755453,101790.0,101780.0,0.66860182]
[1734154630394,0.16675453,101790.0,101780.0,0.66860182]